[Event "SVK ECo-C Extraliga 2021-22"]
[Site "Slovakia"]
[Date "2022.06.11"]
[Round "10.5"]
[White "Vojtek, Vladimir"]
[Black "Urhegyi, Marton"]
[Result "1-0"]
[ECO "B50"]
[WhiteElo "2288"]
[BlackElo "2253"]
[Annotator "TA"]
[PlyCount "137"]
[EventDate "2021.10.21"]
[EventType "team-tourn"]
[EventCountry "SVK"]
[SourceTitle "playchess.com"]
[Source "ChessBase"]
[SourceQuality "1"]
[TimeControl "40/5400+30:1800+30"]

{[%evp 17,137,-16,-10,-22,-17,-33,-25,-44,-10,-10,-8,0,35,0,0,0,17,24,56,83,152,160,177,170,132,135,129,126,235,221,288,266,313,332,293,294,325,322,408,325,458,464,422,180,158,86,95,102,108,95,102,116,117,104,116,116,111,114,103,111,130,93,91,55,118,75,105,90,168,156,183,183,214,89,117,25,32,22,17,17,18,22,134,134,134,134,166,144,176,176,276,266,29974,29973,29977,29976,29978,29977,29979,29978,29978,29979,29980,29981,29979,29979,29979,29980,29987,29988,29988,29988,29988,29989,29989,29990,29990,29991,29991,29991,29992,29993]} 1. e4 c5 {[%emt 0:00:09]} 2. Nf3 {[%emt 0:16:03]} d6 {[%emt 0:00:06]} 3. g3 {[%emt 0:01:11]} Nc6 {[%emt 0:01:26]} 4. Bg2 {[%emt 0:00:05]} g6 {[%emt 0:00:51]} 5. O-O {[%emt 0:00:17]} Bg7 {[%emt 0:00:05]} 6. c3 {[%emt 0:00:16]} Nf6 {[%emt 0:04:58]} 7. Re1 {[%emt 0:00:34]} O-O {[%emt 0:02:17]} 8. d3 {[%emt 0:04:27]} e5 {[%emt 0:05:47]} 9. Nbd2 {[%emt 0:02:53] 9.a4 is the modern continuation.} Re8 {[%emt 0:02:06] [#]} 10. b3 $146 {[%emt 0:05:57] A05: Réti Opening: 1 Nf3 Nf6.} ({Predecessor:} 10. a4 h6 11. Nc4 Be6 12. Nfd2 d5 13. exd5 Bxd5 14. Bf1 Bf8 15. Ne4 Nh7 16. Ned2 f5 17. a5 Qc7 18. Qa4 Nf6 19. Qb5 Rad8 {½-½ (45) Mendonca,L (2458)-Kosic,D (2435) Budapest 2020}) 10... d5 {[%emt 0:11:52]} 11. Ba3 {[%emt 0:10:16]} b6 {[%emt 0:05:09]} 12. b4 {[%emt 0:05:41] Black has an edge.} cxb4 {[%emt 0:14:33]} 13. cxb4 {[%emt 0:00:48]} Bb7 {[%emt 0:01:26]} 14. Rc1 {[%emt 0:03:31]} Qd7 {[%emt 0:06:55]} 15. Qb3 {[%emt 0:04:28]} Rad8 {[%emt 0:07:38]} 16. Bb2 {[%emt 0:03:18]} Qd6 {[%emt 0:08:53]} 17. a3 {[%emt 0:04:30][%cal Ba2a3,Ba3a4][%mdl 32]} d4 {[%emt 0:07:20]} 18. Nc4 {[%emt 0:01:48]} Qe6 {[%emt 0:05:06]} (18... Qe7 $142) 19. b5 $16 {[%emt 0:05:00]} Na5 {[%emt 0:02:16]} 20. Nxa5 {[%emt 0:01:52]} bxa5 {[%emt 0:00:07]} 21. Qxe6 {[%emt 0:14:42]} Rxe6 {[%emt 0:00:08]} 22. a4 {[%emt 0:00:21]} Ne8 {[%emt 0:07:18] Against Rc7} (22... Bf8 $16) 23. Bh3 $18 {[%emt 0:04:10]} Re7 {[%emt 0:00:41]} 24. Ba3 {[%emt 0:00:31]} Rc7 {[%emt 0:00:58]} 25. Rxc7 {[%emt 0:01:45]} Nxc7 {[%emt 0:00:04]} 26. Bc5 {[%emt 0:00:27]} Ra8 {[%emt 0:03:12]} 27. Bd6 {[%emt 0:01:10][%csl LRc7,LRe5]} Ne6 {[%emt 0:01:25]} 28. Rc1 {[%emt 0:02:25]} Re8 {[%emt 0:00:46]} (28... Rc8 {keeps fighting.} 29. Rxc8+ Bxc8 30. Bxe5 Bxe5) 29. Bxe6 {[%emt 0:02:52]} Rxe6 {[%emt 0:00:11]} 30. Bb8 {[%emt 0:00:04]} (30. Rc7 $142) 30... Re7 {[%emt 0:01:11]} 31. Rc7 {[%emt 0:01:25]} (31. Bxa7 $142 {Hoping for Bb6.} f5 32. Bb6 (32. Bc5 Rc7 $14)) 31... Rxc7 $16 {[%emt 0:00:28]} 32. Bxc7 {[%emt 0:00:01][%mdl 4096] Endgame KBB-KBN} f5 {[%emt 0:00:30]} 33. Nd2 $1 {[%emt 0:00:44]} Bh6 {[%emt 0:00:36]} 34. f4 {[%emt 0:01:07]} exf4 {[%emt 0:00:24]} 35. gxf4 {[%emt 0:00:26]} a6 {[%emt 0:00:33] [#]} 36. b6 {[%emt 0:00:29]} fxe4 {[%emt 0:00:32]} 37. Nxe4 {[%emt 0:00:23]} Bf8 {[%emt 0:00:16]} 38. Be5 {[%emt 0:00:43]} Kf7 {[%emt 0:00:43]} 39. Bxd4 {[%emt 0:00:25] 0x0.001b6862aac6dp-1022s more active pieces.} Ke6 {[%emt 0:00:20]} 40. Kf2 {[%emt 0:01:03]} Ba3 {[%emt 0:00:38]} (40... Bc6 $1 $14) 41. Ke2 {[%emt 0:32:07]} Kd5 {[%emt 0:13:07]} 42. Be3 {[%emt 0:00:00]} h6 {[%emt 0:07:15]} (42... Be7 $16 {was necessary.}) 43. Nd2 $18 {[%emt 0:00:00][%cal Of4f5]} Bb4 {[%emt 0:09:02]} 44. Nc4 {[%emt 0:00:00][%cal Of4f5] Black must now prevent f5!} Bc8 {[%emt 0:00:41]} 45. Kd1 {[%emt 0:00:00]} (45. f5 $18 {has better winning chances.} gxf5 46. Bxh6) 45... Kc6 {[%emt 0:02:00] [#]} 46. Kc2 {[%emt 0:00:00]} (46. Ne5+ $1 $16 Kb7 47. Nxg6) 46... Kb7 $11 {[%emt 0:00:30]} 47. Bd2 {[%emt 0:00:00] Threatens to win with Bxb4.} Bc5 {[%emt 0:00:55]} 48. Bxa5 {[%emt 0:00:00]} Bd7 {[%emt 0:00:14]} 49. Kb3 {[%emt 0:00:00]} g5 {[%emt 0:00:41] White stays focused until the end.} (49... h5 $11 {keeps the balance.}) 50. fxg5 $16 {[%emt 0:00:00]} hxg5 {[%emt 0:00:02]} 51. Bd2 {[%emt 0:00:00]} Bg1 {[%emt 0:01:02]} 52. Bxg5 {[%emt 0:00:00] Strongly threatening Bd8.} Bxh2 {[%emt 0:00:11]} 53. Be3 {[%emt 0:00:00]} Be6 {[%emt 0:00:31]} (53... Bf5 $142 54. Na5+ Kc8) 54. Kb4 $18 {[%emt 0:00:00] aiming for Na5+.} Bxc4 {[%emt 0:00:51]} (54... Bd7 $18 55. Na5+ Kc8) 55. Kxc4 {[%emt 0:00:00] KB-KB. White mates.} Kc6 {[%emt 0:00:11]} 56. Bc5 {[%emt 0:00:00]} Bg3 {[%emt 0:00:47]} 57. d4 {[%emt 0:00:00][%cal Bd3d4,Bd4d5][%mdl 32]} Bf4 {[%emt 0:00:32]} 58. d5+ {[%emt 0:00:00]} Kd7 {[%emt 0:00:26]} 59. Kd3 {[%emt 0:00:44]} Be5 {[%emt 0:00:31]} 60. Ke4 {[%emt 0:00:14]} Bg3 {[%emt 0:00:26]} 61. Be3 {[%emt 0:00:37]} Kc8 {[%emt 0:00:34]} 62. Kf5 {[%emt 0:00:26]} Bh2 {[%emt 0:00:35]} 63. Ke6 {[%emt 0:00:18]} Kb7 {[%emt 0:00:20]} 64. Bc5 {[%emt 0:01:15]} Bf4 {[%emt 0:00:23]} 65. d6 {[%emt 0:01:26]} Bxd6 {[%emt 0:00:41]} 66. Kxd6 {[%emt 0:00:05]} a5 {[%emt 0:00:30]} 67. Bd4 {[%emt 0:00:09]} Ka6 {[%emt 0:00:28]} 68. Kc5 {[%emt 0:00:06]} Kb7 {[%emt 0:00:10]} 69. Kb5 {[%emt 0:00:05] Weighted Error Value: White=0.19 (very precise) /Black=0.37} 1-0

[Event "SVK ECo-C Extraliga 2021-22"]
[Site "Slovakia"]
[Date "2022.06.11"]
[Round "10.5"]
[White "Zvarik, Martin"]
[Black "Chovan, Milan"]
[Result "0-1"]
[ECO "C55"]
[WhiteElo "2228"]
[BlackElo "2339"]
[Annotator "TA"]
[PlyCount "168"]
[EventDate "2021.10.21"]
[EventType "team-tourn"]
[EventCountry "SVK"]
[SourceTitle "playchess.com"]
[Source "ChessBase"]
[SourceQuality "1"]
[TimeControl "40/5400+30:1800+30"]

{[%evp 10,168,21,7,12,0,0,0,0,0,4,0,0,0,0,0,0,0,0,-26,0,0,0,0,15,-7,0,0,0,-27,21,24,48,13,23,-10,29,31,45,12,20,11,22,-14,8,-27,-23,-26,-28,-22,0,0,0,0,22,-12,0,-47,-44,-78,-73,-70,-13,-10,-30,-108,-93,-159,-135,-158,-136,-438,-415,-429,-436,-418,-433,-440,-413,-434,-434,-404,-418,-393,-418,-377,-391,-463,-444,-587,-520,-569,-485,-677,-645,-650,-655,-628,-626,-651,-602,-650,-647,-652,-648,-654,-486,-483,-466,-409,-392,-564,-483,-576,-570,-568,-561,-656,-378,-460,-377,-439,-431,-650,-655,-654,-655,-665,-655,-676,-666,-662,-626,-602,-666,-637,-619,-519,-470,-665,-657,-599,0,-670,-670,-666,-665,-630,-607,-608,-597,-593,-593,-574,-535,-770,-678,-669,-662,-603,-545]} 1. e4 {[%emt 0:00:36]} e5 {[%emt 0:00:11]} 2. Nf3 {[%emt 0:00:07]} Nc6 {[%emt 0:00:07]} 3. Bc4 {[%emt 0:00:26]} Nf6 {[%emt 0:00:06]} 4. d3 {[%emt 0:01:16]} Be7 {[%emt 0:00:18]} 5. Nc3 {[%emt 0:00:46]} d6 {[%emt 0:01:46]} 6. a3 {[%emt 0:07:23]} O-O {[%emt 0:00:49] C55: Two Knights: 4 d3, 4 d4 exd4 5 e5 and Max Lange Attack.} 7. Bg5 {[%emt 0:03:28]} h6 {[%emt 0:01:56]} 8. Bxf6 {[%emt 0:01:06]} Bxf6 {[%emt 0:00:09] The position is equal.} 9. Nd5 {[%emt 0:00:49] [#]} g6 $146 {[%emt 0:00:39]} ({Predecessor:} 9... Kh8 10. h3 Be7 11. d4 f5 12. exf5 e4 13. Nd2 Bxf5 14. c3 Bg5 {0-1 (25) Barthel,A (2120)-Colpe,M (2368) Neustadt an der Weinstrasse 2019}) 10. h4 {[%emt 0:06:18][%cal Bh2h4,Bh4h5][%mdl 32]} Bg7 {[%emt 0:05:17]} 11. h5 {[%emt 0:02:18]} g5 {[%emt 0:01:20]} 12. Ne3 {[%emt 0:02:10]} Ne7 {[%emt 0:05:39]} 13. Nd2 {[%emt 0:09:26]} c6 {[%emt 0:06:24]} 14. Qf3 {[%emt 0:04:15]} Kh8 {[%emt 0:09:17][%cal Od6d5]} 15. g4 $1 {[%emt 0:02:05]} ({Avoid the trap} 15. Bxf7 $2 Bd7 16. g4 Be8 $19) 15... d5 {[%emt 0:01:13]} 16. Bb3 {[%emt 0:00:55]} Be6 {[%emt 0:01:01]} 17. Rd1 {[%emt 0:04:18]} Qd7 {[%emt 0:01:24]} 18. O-O {[%emt 0:05:32]} Rad8 {[%emt 0:00:49]} 19. Rfe1 {[%emt 0:09:21]} f6 {[%emt 0:03:31]} (19... Ng8 $142) 20. Ndf1 {[%emt 0:11:22]} Bg8 {[%emt 0:01:39]} 21. Rd2 {[%emt 0:02:02]} a5 {[%emt 0:03:23]} 22. Qd1 {[%emt 0:01:13]} Qc7 {[%emt 0:01:33]} (22... b5 $5 {[%cal Ra5a4]} 23. a4 d4 $11) 23. c3 {[%emt 0:01:21]} Rd7 {[%emt 0:03:27]} 24. Qc2 {[%emt 0:03:10]} Rfd8 {[%emt 0:01:03]} 25. Red1 {[%emt 0:03:02]} Bh7 {[%emt 0:12:02]} 26. Qb1 {[%emt 0:03:08]} Qb6 {[%emt 0:01:33]} 27. Bc2 {[%emt 0:01:02]} d4 {[%emt 0:03:13]} 28. Nf5 {[%emt 0:04:27]} Nxf5 {[%emt 0:06:22]} 29. exf5 {[%emt 0:02:06]} dxc3 {[%emt 0:00:16]} 30. bxc3 {[%emt 0:00:05]} Qc5 {[%emt 0:00:10]} 31. Qb2 {[%emt 0:00:42]} Bf8 {[%emt 0:00:09][%cal Bg7f8,Bf8a3,Ba3b4][%mdl 32]} 32. a4 {[%emt 0:01:33]} (32. Bb3 $5 {[%cal Rb3e6]}) 32... b5 {[%emt 0:08:15]} 33. d4 {[%emt 0:04:09]} (33. Ng3 $1 $11 {is superior.}) 33... exd4 $15 {[%emt 0:02:20]} 34. cxd4 {[%emt 0:00:31]} Qb4 $36 {[%emt 0:00:08][%mdl 2048] Black is really pushing.} 35. Qa1 {[%emt 0:00:52]} Qa3 {[%emt 0:01:41] Black is more active.} (35... Bg8 $15 36. Ne3 Qa3 37. Qxa3 Bxa3) 36. Qxa3 {[%emt 0:03:22]} (36. d5 {with more complications.} Qxa1 37. Rxa1 Bg8 38. dxc6 Rxd2 39. c7) 36... Bxa3 {[%emt 0:00:02]} 37. Ne3 {[%emt 0:01:33]} (37. Bb3 $11) 37... Bg8 $17 {[%emt 0:00:31][%cal Oa3c5] White is on the road to losing.} 38. Be4 {[%emt 0:00:40]} ({White should play} 38. Rd3 b4 39. d5) 38... Bb4 {[%emt 0:04:36] A strong pair of Bishops.} (38... bxa4 39. Bxc6 Bb3 40. Bxd7 Bxd1 41. Rxd1 $11) 39. Rd3 {[%emt 0:00:28]} Bc4 {[%emt 0:01:11]} (39... bxa4 40. Bxc6 Bb3 41. Bxd7 Bxd1 42. Rxd1 $15) 40. Bxc6 $2 {[%emt 0:00:26][%mdl 8192]} (40. Nxc4 $17 {was the crucial defense.} bxc4 41. Re3) 40... Bxd3 $19 {[%emt 0:00:20]} 41. Bxd7 {[%emt 0:03:37]} Be2 {[%emt 0:01:10]} ({Stronger than} 41... Rxd7 42. Rxd3 bxa4 43. Rd1 $17) 42. Bxb5 {[%emt 0:07:21]} Bxd1 {[%emt 0:00:08]} 43. Nxd1 {[%emt 0:00:05]} Rxd4 {[%emt 0:00:12][%mdl 4096] Endgame KRB-KBN} 44. Ne3 {[%emt 0:03:43]} Bd2 {[%emt 0:00:47] [#] And now ...Bxe3 would win.} 45. Nc4 {[%emt 0:01:52]} Rxg4+ {[%emt 0:00:08]} 46. Kf1 {[%emt 0:01:25]} Bb4 {[%emt 0:08:06]} 47. Ne3 {[%emt 0:03:05]} Rd4 {[%emt 0:02:17]} 48. Ke2 {[%emt 0:03:29]} Kg7 {[%emt 0:01:09]} 49. f3 {[%emt 0:02:36]} Rd2+ {[%emt 0:10:19]} 50. Kf1 {[%emt 0:00:45]} Rh2 {[%emt 0:01:22]} 51. Be8 {[%emt 0:00:30]} Bc5 {[%emt 0:01:47]} 52. Ng4 {[%emt 0:00:29]} Rb2 {[%emt 0:00:33]} 53. Bc6 {[%emt 0:00:43]} Bb6 {[%emt 0:00:17]} 54. Be8 {[%emt 0:00:57]} Rd2 {[%emt 0:00:16]} 55. Bc6 {[%emt 0:00:53]} Rc2 {[%emt 0:01:02]} 56. Bb5 {[%emt 0:01:40]} Rc5 {[%emt 0:00:42][%cal Oc5b5] [#] ( -> ...Rxb5!)} 57. Bd3 {[%emt 0:01:45]} Rd5 {[%emt 0:00:51]} 58. Ke2 {[%emt 0:00:30]} Bc5 {[%emt 0:00:43]} 59. Be4 {[%emt 0:01:21]} Rd6 {[%emt 0:00:26]} 60. Ba8 {[%emt 0:00:42]} (60. Bc2 $142) 60... Rb6 {[%emt 0:00:44]} 61. Kf1 {[%emt 0:00:27]} Rb4 {[%emt 0:01:55]} 62. Bc6 {[%emt 0:00:07]} Rc4 {[%emt 0:00:04]} 63. Kg2 {[%emt 0:00:30]} Bf8 {[%emt 0:00:23]} 64. Be8 {[%emt 0:00:40]} Rf4 {[%emt 0:00:33]} 65. Bd7 {[%emt 0:00:26]} Bc5 {[%emt 0:00:38]} 66. Kg3 {[%emt 0:00:28]} (66. Nh2 $142) 66... Ba7 {[%emt 0:00:07]} 67. Kg2 {[%emt 0:00:23]} Rd4 {[%emt 0:00:45]} 68. Bc6 {[%emt 0:00:37]} Rd2+ {[%emt 0:00:01]} 69. Kf1 {[%emt 0:00:31]} Rd6 {[%emt 0:00:30]} 70. Be4 {[%emt 0:01:36]} Rd4 {[%emt 0:03:48]} 71. Bc6 {[%emt 0:00:59]} Rc4 {[%emt 0:00:22]} 72. Bd7 {[%emt 0:00:25]} Rc7 {[%emt 0:01:15]} 73. Bb5 {[%emt 0:00:59]} Rc1+ {[%emt 0:00:11]} 74. Kg2 {[%emt 0:00:06]} (74. Ke2 $142) 74... Rc5 {[%emt 0:00:12][%cal Oc5b5] Hoping for ...Rxb5!} 75. Bd3 {[%emt 0:00:58]} Bb6 {[%emt 0:01:30]} 76. Kf1 $1 {[%emt 0:00:25]} Rc1+ {[%emt 0:00:50] Black is clearly winning.} 77. Kg2 {[%emt 0:00:09]} Rg1+ {[%emt 0:01:16]} 78. Kh2 {[%emt 0:00:08]} Rd1 {[%emt 0:00:05]} 79. Be4 {[%emt 0:00:23]} Rc1 {[%emt 0:00:29] aiming for ...Rc4.} 80. Bd5 {[%emt 0:00:26] Prevents Rc4.} Rc5 {[%emt 0:00:34]} 81. Be6 {[%emt 0:00:10]} Rc2+ {[%emt 0:00:20]} 82. Kh1 {[%emt 0:00:29]} Rd2 {[%emt 0:00:11] Strongly threatening ...Rd4.} 83. Bc4 {[%emt 0:02:32]} Rd4 {[%emt 0:00:35]} 84. Bb5 {[%emt 0:00:32]} Rf4 {[%emt 0:00:08] Weighted Error Value: White=0.29 (precise) /Black=0.14 (very precise)} 0-1

[Event "SVK ECo-C Extraliga 2021-22"]
[Site "Slovakia"]
[Date "2022.06.11"]
[Round "10.6"]
[White "Smolen, Jan"]
[Black "Straka, Jozef"]
[Result "1-0"]
[ECO "A00"]
[WhiteElo "2410"]
[BlackElo "2319"]
[Annotator "TA"]
[PlyCount "165"]
[EventDate "2021.10.21"]
[EventType "team-tourn"]
[EventCountry "SVK"]
[SourceTitle "playchess.com"]
[Source "ChessBase"]
[SourceQuality "1"]
[TimeControl "40/5400+30:1800+30"]

{[%evp 9,165,-10,-6,-10,-14,-21,-15,-28,-6,-22,0,-36,-41,-35,-35,-39,-41,-52,-48,-35,-1,-7,21,12,46,28,61,44,33,33,40,0,0,0,0,-21,-56,-18,0,0,0,0,100,98,81,40,26,38,227,42,33,33,44,50,45,54,46,46,52,52,58,59,53,53,82,89,129,129,146,139,146,146,146,147,169,135,122,105,135,135,139,139,171,171,170,159,170,170,170,170,160,158,458,458,458,447,458,454,437,429,1083,415,379,345,968,470,982,472,324,239,239,225,225,225,222,209,458,426,12833,12832,1664,10,367,303,1173,744,1600,1352,1208,1062,1679,1654,12831,9810,12843,12832,12845,12841,12841,6617,2770,1650,12845,12839,12838,6946,12845,12845,12846,12845,12847,12847,12848,12847,12848,12848,12849,12849]} 1. a3 {[%emt 0:00:02]} d5 {[%emt 0:02:00]} 2. b4 {[%emt 0:00:04]} a5 {[%emt 0:00:59]} 3. b5 {[%emt 0:00:20] [#]} c5 $146 {[%emt 0:05:20]} ({Predecessor:} 3... Nd7 4. e3 c5 5. bxc6 bxc6 6. c4 Rb8 7. d4 Ba6 8. Bd2 e6 9. Nf3 Be7 {½-½ (19) Cirulis,I (1907)-Roberts,N (1800) FICGS email 2016}) 4. Nf3 {[%emt 0:00:08]} Nf6 {[%emt 0:03:56]} 5. g3 {[%emt 0:00:02]} Nbd7 {[%emt 0:05:22]} 6. Bb2 {[%emt 0:00:08] Prevents e5. A00: Irregular Openings.} Qc7 {[%emt 0:01:11]} 7. Bg2 {[%emt 0:00:33]} e5 {[%emt 0:07:49]} 8. O-O {[%emt 0:00:03] The position is equal.} Bd6 {[%emt 0:00:37]} 9. d3 {[%emt 0:00:03]} Nb6 {[%emt 0:09:44]} 10. Nbd2 {[%emt 0:01:16]} c4 {[%emt 0:08:53]} 11. dxc4 {[%emt 0:07:57]} dxc4 {[%emt 0:00:27]} 12. Ng5 {[%emt 0:01:04][%cal Bf3g5,Bg5e4,Be4c3,Bc3a4][%mdl 32]} Bf5 {[%emt 0:08:32]} (12... c3 13. Bxc3 $1 {[%mdl 512]} (13. Nde4 $2 Nxe4 14. Nxe4 cxb2 $19) 13... O-O 14. Bb2 $11) 13. Nde4 {[%emt 0:02:12]} Be7 {[%emt 0:04:07]} 14. Nxf6+ {[%emt 0:04:53]} gxf6 {[%emt 0:06:49]} 15. Ne4 {[%emt 0:02:27]} Na4 {[%emt 0:01:04] [#]} 16. Nc3 $1 {[%emt 0:10:04]} Nxb2 {[%emt 0:11:03]} (16... Nxc3 17. Bxc3) 17. Qc1 {[%emt 0:00:05]} Be6 {[%emt 0:05:49][%cal Oe5e4]} 18. Qxb2 {[%emt 0:00:11]} O-O-O {[%emt 0:04:42][%cal Ba8d8,Bd8d2,Bd2c2][%mdl 32]} 19. b6 {[%emt 0:04:40]} Qc5 {[%emt 0:00:12]} 20. Na4 {[%emt 0:06:09]} c3 $1 {[%emt 0:00:50]} 21. Nxc3 {[%emt 0:03:50]} (21. Nxc5 $2 {perishes.} cxb2 22. Nxb7 (22. Bxb7+ $2 Kb8 $19) 22... bxa1=R $19) (21. Bxb7+ $2 Kb8 22. Qc1 (22. Nxc5 $2 cxb2 23. Nxe6 bxa1=Q $19) 22... Qc4 $19) 21... Kb8 $1 {[%emt 0:02:32]} 22. e4 {[%emt 0:10:59]} Rd2 {[%emt 0:02:02]} 23. Nd5 {[%emt 0:02:28]} Bxd5 {[%emt 0:01:45]} 24. exd5 {[%emt 0:00:07]} Rxc2 {[%emt 0:00:07]} 25. Qb3 {[%emt 0:00:18][%cal Od5d6] aiming for d6!} f5 {[%emt 0:05:06]} (25... Qc3 $11 26. Qa4 Rxf2) 26. d6 $1 $16 {[%emt 0:01:58]} Bxd6 {[%emt 0:00:26]} 27. Qxf7 {[%emt 0:00:04][%csl Gg2][%cal Rf7b7]} e4 {[%emt 0:00:15]} 28. Rad1 {[%emt 0:00:51]} Rf8 $2 {[%emt 0:01:04]} ({Better is} 28... Rd8 $14) 29. Qe6 $2 {[%emt 0:00:39]} (29. Qd7 $1 $18 Be7 30. Rd5 Qxa3 31. Rxf5) 29... Rd8 $14 {[%emt 0:01:15]} 30. Rd5 {[%emt 0:01:47]} Qxb6 {[%emt 0:00:09]} 31. Qxf5 {[%emt 0:00:23]} Rf8 {[%emt 0:00:54]} 32. Rb5 {[%emt 0:04:44]} Rxf5 {[%emt 0:00:24]} 33. Rxb6 {[%emt 0:00:07]} Bc5 $1 {[%emt 0:00:44] [#]} 34. Rxb7+ $1 {[%emt 0:02:41]} Kc8 $1 {[%emt 0:00:46][%cal Rf5f2]} 35. Bxe4 {[%emt 0:05:06]} Rfxf2 {[%emt 0:00:16]} 36. Rxf2 {[%emt 0:01:00]} Rxf2 {[%emt 0:00:02][%mdl 4096] Endgame KRB-KRB} 37. Rb5 {[%emt 0:01:20][%cal Bb7b5,Bb5a5,Ba5a6][%mdl 32]} Be3 {[%emt 0:00:48]} 38. Kh1 {[%emt 0:00:24]} h6 {[%emt 0:00:47]} 39. Rxa5 {[%emt 0:00:18]} Kc7 {[%emt 0:00:24]} 40. Ra6 {[%emt 0:06:57]} Ra2 {[%emt 0:00:44]} 41. a4 {[%emt 0:31:24][%cal Ba3a4,Ba4a5][%mdl 32]} Bb6 {[%emt 0:01:47]} 42. Ra8 {[%emt 0:00:00]} Kd6 {[%emt 0:04:05]} 43. Rc8 {[%emt 0:00:00]} Ke5 {[%emt 0:03:42]} 44. Rc4 {[%emt 0:00:00]} Bd4 {[%emt 0:01:47]} 45. Bc6 {[%emt 0:00:00]} Rb2 {[%emt 0:16:50]} 46. a5 {[%emt 0:00:00]} Rb1+ {[%emt 0:00:38]} 47. Kg2 {[%emt 0:00:00]} Rb2+ {[%emt 0:00:04]} 48. Kh3 {[%emt 0:00:00]} Bg1 {[%emt 0:00:07] [#]} 49. Bg2 $1 {[%emt 0:00:00] Hoping for Rh4.} Ra2 {[%emt 0:00:02]} 50. Rh4 {[%emt 0:00:00]} Kf6 $2 {[%emt 0:00:52]} (50... Bc5 $16 {was worth a try.} 51. Rh5+ (51. Rxh6 Rxa5 52. Rh5+ Ke6 $16) 51... Kd4 52. Rxh6 Rxa5) 51. Rxh6+ $18 {[%emt 0:00:00]} Kg5 {[%emt 0:00:01]} 52. Ra6 {[%emt 0:00:00]} Kh5 {[%emt 0:02:24]} 53. Ra8 {[%emt 0:00:00]} Kg5 {[%emt 0:00:03]} 54. a6 {[%emt 0:00:00]} Kh5 {[%emt 0:00:03]} (54... Kf6 $142 55. g4 Bc5) 55. Rh8+ {[%emt 0:00:00]} (55. Rg8 $142 {Threatens to win with g4+.} Kh6 56. Be4 Rxh2+ 57. Kg4) 55... Kg5 {[%emt 0:00:18] [#]} 56. Rg8+ $1 {[%emt 0:00:00]} Kh6 $2 {[%emt 0:01:35]} (56... Kf6 57. Rf8+ Kg5) 57. Bb7 {[%emt 0:00:00]} (57. Be4 $142 {g4 is the strong threat.} Rxh2+ 58. Kg4) 57... Rxh2+ {[%emt 0:01:01]} 58. Kg4 {[%emt 0:00:04]} Ra2 {[%emt 0:00:34]} 59. Rf8 {[%emt 0:00:30] Black must now prevent Rf6+.} Ra3 {[%emt 0:01:11]} 60. Rf6+ {[%emt 0:00:14]} Kg7 {[%emt 0:00:07]} 61. Rf3 {[%emt 0:00:49]} Ra5 {[%emt 0:00:37]} 62. Kh4 {[%emt 0:01:47]} Ra4+ $2 {[%emt 0:01:09]} (62... Bd4 63. Rd3 Bf2) 63. g4 {[%emt 0:01:43] And now Kh5 would win.} Ra5 {[%emt 0:00:53]} (63... Kg6 $142 64. Kg3 Ba7) 64. Rf5 {[%emt 0:00:36]} Ra3 {[%emt 0:00:34]} 65. Rg5+ $2 {[%emt 0:01:19]} (65. g5 $18 {Strongly threatening Kg4.} Bh2 66. Bc8) 65... Kh6 $2 {[%emt 0:00:42][%mdl 8192]} (65... Kf6 $11 {and Black stays safe.} 66. Rf5+ Kg6) 66. Rh5+ {[%emt 0:00:15]} Kg7 $2 {[%emt 0:01:06]} (66... Kg6 67. Rg5+ Kf6 68. Rf5+ Kg6) 67. Re5 {[%emt 0:02:19] White is clearly winning.} Kh6 {[%emt 0:01:03]} 68. Re6+ {[%emt 0:00:18]} Kg7 {[%emt 0:00:05]} 69. Be4 {[%emt 0:00:43]} Be3 {[%emt 0:00:57]} 70. g5 {[%emt 0:02:43][%cal Bg4g5,Bg5g6][%mdl 32]} Ra5 {[%emt 0:00:30]} 71. g6 {[%emt 0:01:08]} Ra4 {[%emt 0:00:36]} 72. Kg4 {[%emt 0:00:21]} Bd4 {[%emt 0:00:25]} 73. Kf4 {[%emt 0:00:30]} Ra5 {[%emt 0:00:28]} 74. Bd3 {[%emt 0:01:56]} Bf6 {[%emt 0:00:38]} 75. Rc6 {[%emt 0:00:23]} Ra4+ {[%emt 0:00:32]} 76. Kf5 {[%emt 0:00:58]} Ra5+ {[%emt 0:00:18]} 77. Ke6 {[%emt 0:00:19]} Bd4 {[%emt 0:00:28]} 78. Rc7+ {[%emt 0:01:04]} Kf8 {[%emt 0:00:39]} 79. Rd7 {[%emt 0:00:17]} Be3 {[%emt 0:00:40]} 80. g7+ {[%emt 0:00:31]} Kg8 {[%emt 0:00:03]} 81. Bc4 {[%emt 0:00:29] Intending Kf6+ and mate.} Kh7 {[%emt 0:00:57]} 82. Kd6 {[%emt 0:01:06]} Bf4+ {[%emt 0:00:30]} 83. Kc6 {[%emt 0:00:14] Weighted Error Value: White=0.30/Black=0.21 (precise)} 1-0